fUSD/lending_fUSD_20251001
["ID","MTS","AMOUNT","RATE_DAILY","PERIOD"]
[388663093,1759311039987,-1586.5744784,0.00019657,2]
[388663095,1759311039999,-168.0,0.00019726,2]
[388663097,1759311040009,-204.6992929,0.00019726,2]
[388663099,1759311040019,-174.36,0.00019734,2]
[388663101,1759311040028,-500.0,0.00019778,2]
[388663103,1759311040041,-150.0,0.00019778,2]
[388663105,1759311040050,-150.0,0.00019778,2]
[388663107,1759311040060,-150.22,0.00019779,2]
[388663109,1759311040070,-15498.6409,0.00019789,2]
[388663111,1759311040080,-6176.81331,0.000198,2]
[388663113,1759311040091,-1900.0,0.000198,7]
[388663115,1759311040101,-168.0,0.00019898,2]
[388663117,1759311040110,-5000.0,0.000199,2]
[388663119,1759311040120,-797.45450654,0.000199,2]
[388663121,1759311040130,-160.17277587,0.000199,2]
[388663123,1759311040140,-1000.0,0.000199,2]
[388663126,1759311040150,-1000.0,0.000199,2]
[388663128,1759311040163,-1000.0,0.000199,2]
[388663130,1759311040173,-1000.0,0.000199,2]
[388663132,1759311040183,-1150.0,0.000199,2]
[388663134,1759311040194,-1000.0,0.000199,3]
[388663136,1759311040204,-1007.0,0.000199,2]
[388663138,1759311040213,-708.0,0.000199,2]
[388663139,1759311040223,-333.48250184,0.000199,2]
[388663140,1759311040233,-2068.63127225,0.000199,2]
[388663141,1759311040243,-2600.0,0.000199,7]
[388663142,1759311040252,-150.0,0.000199,2]
[388663143,1759311040265,-150.0,0.000199,2]
[388663144,1759311040274,-500.0,0.000199,2]
[388663145,1759311040284,-500.0,0.000199,2]
[388663146,1759311040299,-542.2805787,0.000199,2]
[388663147,1759311040310,-570.0,0.00019903,2]
[388663148,1759311040320,-1584.0,0.00019903,2]
[388663149,1759311040330,-1306.0,0.00019903,2]
[388663150,1759311040340,-603.0,0.00019903,2]
[388663151,1759311040350,-814.0,0.00019903,2]
[388663152,1759311040359,-902.684,0.00019903,2]
[388663153,1759311040369,-1180.0,0.00019903,2]
[388663154,1759311040378,-3495.911,0.00019903,2]
[388663155,1759311040388,-4114.0,0.00019903,2]
[388663156,1759311040398,-1264.0,0.00019903,2]
[388663157,1759311040407,-2044.0,0.00019903,2]
[388663158,1759311040417,-3399.0,0.00019903,2]
[388663159,1759311040427,-909.50128,0.00019903,2]
[388663160,1759311040436,-151.0,0.00019903,2]
[388663161,1759311040446,-909.50128,0.00019903,2]
[388663162,1759311040456,-151.0,0.00019903,2]
[388663163,1759311040467,-909.50128,0.00019903,2]
[388663164,1759311040477,-909.50128,0.00019903,2]
[388663165,1759311040487,-188.75,0.00019903,2]
[388663167,1759311040497,-188.75,0.00019903,2]
[388663169,1759311040507,-188.75,0.00019903,2]
[388663171,1759311040517,-188.75,0.00019903,2]
[388663173,1759311040526,-151.0,0.00019903,2]
[388663175,1759311040538,-324.507231,0.00019903,2]
[388663177,1759311040548,-324.507231,0.00019903,2]
[388663179,1759311040558,-324.507231,0.00019903,2]
[388663181,1759311040568,-324.507231,0.00019903,2]
[388663183,1759311040577,-151.0,0.00019903,2]
[388663185,1759311040586,-151.0,0.00019903,2]
[388663187,1759311040597,-151.0,0.00019903,2]
[388663189,1759311040607,-151.0,0.00019903,2]
[388663191,1759311040616,-151.0,0.00019903,2]
[388663193,1759311040625,-151.0,0.00019903,2]
[388663195,1759311040634,-151.0,0.00019903,2]
[388663197,1759311040643,-151.0,0.00019903,2]
[388663199,1759311040653,-151.0,0.00019903,2]
[388663201,1759311040663,-151.0,0.00019903,2]
[388663203,1759311040672,-151.0,0.00019903,2]
[388663205,1759311040681,-151.0,0.00019903,2]
[388663207,1759311040690,-151.0,0.00019903,2]
[388663209,1759311040700,-150.0,0.00019948,4]
[388663211,1759311040709,-150.0,0.00019948,4]
[388663213,1759311040718,-150.0,0.00019948,4]
[388663215,1759311040727,-150.0,0.00019948,4]
[388663217,1759311040737,-150.0,0.00019948,4]
[388663219,1759311040747,-200.02324793,0.00019948,4]
[388663222,1759311040757,-150.0,0.00019948,4]
[388663224,1759311040767,-150.0,0.00019948,4]
[388663226,1759311040777,-150.0,0.00019948,4]
[388663228,1759311040788,-150.0,0.00019948,4]
[388663230,1759311040798,-150.0,0.00019948,4]
[388663232,1759311040807,-150.0,0.00019948,4]
[388663234,1759311040817,-150.32341392,0.00019948,4]
[388663236,1759311040827,-150.0,0.00019948,4]
[388663238,1759311040837,-150.0,0.00019948,4]
[388663240,1759311040846,-150.0,0.00019948,4]
[388663242,1759311040856,-152.34651582,0.00019948,4]
[388663244,1759311040865,-151.0,0.00019948,2]
[388663246,1759311040874,-663.357299,0.00019948,2]
[388663248,1759311040883,-663.357299,0.00019948,2]
[388663250,1759311040893,-1644.215035,0.00019948,2]
[388663252,1759311040904,-1644.215035,0.00019948,2]
[388663254,1759311040913,-1644.215035,0.00019948,2]
[388663256,1759311040923,-1644.215035,0.00019948,2]
[388663258,1759311040932,-151.0,0.00019948,2]
[388663260,1759311040941,-151.0,0.00019948,2]
[388663262,1759311040951,-151.0,0.00019948,2]
[388663264,1759311040960,-151.0,0.00019948,2]
[388663267,1759311040970,-151.0,0.00019948,2]
[388663269,1759311040979,-162.879849,0.00019948,2]
[388663271,1759311040989,-151.0,0.00019948,2]
[388663273,1759311040999,-151.0,0.00019948,2]
[388663275,1759311041008,-162.879849,0.00019948,2]
[388663277,1759311041018,-160.90928152,0.00019973,2]
[388663279,1759311041028,-548.05860181,0.00019973,2]
[388663281,1759311041039,-164.95019014,0.00019973,2]
[388663283,1759311041049,-159.58051363,0.00019973,2]
[388663285,1759311041058,-500.0,0.00019973,2]
[388663287,1759311041067,-500.0,0.00019973,2]
[388663289,1759311041077,-500.0,0.00019973,2]
[388663291,1759311041086,-500.0,0.00019973,2]
[388663293,1759311041097,-212.55970469,0.00019973,2]
[388663295,1759311041107,-500.0,0.00019973,2]
[388663297,1759311041116,-167.05041875,0.00019973,2]
[388663299,1759311041126,-500.0,0.00019973,2]
[388663301,1759311041135,-500.0,0.00019973,2]
[388663304,1759311041148,-155.69065093,0.00019973,2]
[388663306,1759311041158,-500.0,0.00019973,2]
[388663308,1759311041167,-500.0,0.00019973,2]
[388663310,1759311041177,-500.0,0.00019973,2]
[388663312,1759311041187,-500.0,0.00019973,2]
[388663314,1759311041197,-500.0,0.00019973,2]
[388663316,1759311041208,-500.0,0.00019973,2]
[388663318,1759311041217,-233.24467368,0.00019973,2]
[388663320,1759311041227,-500.0,0.00019973,2]
[388663322,1759311041236,-170.44379433,0.00019973,2]
[388663324,1759311041245,-500.0,0.00019973,2]
[388663326,1759311041255,-311.62044675,0.00019973,2]
[388663328,1759311041264,-500.3805661,0.00019973,2]
[388663330,1759311041273,-500.0,0.00019973,2]
[388663332,1759311041285,-500.0,0.00019973,2]
[388663334,1759311041296,-163.27619629,0.00019973,2]
[388663336,1759311041306,-500.0,0.00019973,2]
[388663338,1759311041315,-272.74575354,0.00019973,2]
[388663340,1759311041324,-608.28274077,0.00019973,2]
[388663342,1759311041334,-528.77899135,0.00019973,2]
[388663345,1759311041344,-500.0,0.00019973,2]
[388663347,1759311041354,-500.0,0.00019973,2]
[388663349,1759311041365,-500.0,0.00019973,2]
[388663351,1759311041375,-602.93701514,0.00019973,2]
[388663353,1759311041390,-500.0,0.00019973,2]
[388663397,1759311041783,-500.0,0.00019973,2]
[388663399,1759311041798,-290.0,0.00019973,2]
[388663401,1759311041809,-500.0,0.00019973,2]
[388663403,1759311041818,-295.61009269,0.00019973,2]
[388663405,1759311041828,-150.0,0.00019973,2]
[388663407,1759311041837,-500.0,0.00019973,2]
[388663409,1759311041847,-1927.92,0.00019973,2]
[388663411,1759311041857,-151.0,0.00019973,2]
[388663413,1759311041866,-151.0,0.00019973,2]
[388663415,1759311041875,-151.0,0.00019973,2]
[388663417,1759311041884,-151.0,0.00019973,2]
[388663419,1759311041893,-151.0,0.00019973,2]
[388663421,1759311041902,-151.0,0.00019973,2]
[388663423,1759311041911,-151.0,0.00019973,2]
[388663425,1759311041921,-170.382903,0.00019973,2]
[388663427,1759311041931,-151.0,0.00019973,2]
[388663429,1759311041940,-151.0,0.00019973,2]
[388663431,1759311041949,-208.213515,0.00019973,2]
[388663433,1759311041959,-181.132472,0.00019973,2]
[388663436,1759311041970,-169.019925,0.00019973,2]
[388663438,1759311041979,-181.132472,0.00019973,2]
[388663439,1759311041989,-181.132472,0.00019973,2]
[388663442,1759311041999,-181.132472,0.00019973,2]
[388663444,1759311042009,-151.0,0.00019973,2]
[388663446,1759311042018,-151.0,0.00019973,2]
[388663448,1759311042027,-154.311261,0.00019973,2]
[388663450,1759311042037,-151.0,0.00019973,2]
[388663452,1759311042047,-158.721082,0.00019973,2]
[388663454,1759311042056,-151.0,0.00019973,2]
[388663456,1759311042066,-151.0,0.00019973,2]
[388663458,1759311042075,-151.0,0.00019973,2]
[388663460,1759311042083,-151.0,0.00019973,2]
[388663462,1759311042093,-151.0,0.00019973,2]
[388663464,1759311042102,-151.0,0.00019973,2]
[388663466,1759311042111,-161.042299,0.00019973,2]
[388663468,1759311042121,-150.22,0.00019984,2]
[388663470,1759311042130,-150.22,0.00019989,2]
[388663472,1759311042139,-150.22,0.0001999,2]
[388663474,1759311042148,-150.22,0.0001999,2]
[388663476,1759311042157,-150.22,0.0001999,2]
[388663478,1759311042166,-150.22,0.0001999,2]
[388663480,1759311042176,-150.22,0.0001999,2]
[388663482,1759311042185,-150.22,0.0001999,2]
[388663484,1759311042194,-170917.5985407,0.00019994,2]
[388663486,1759311042204,-2692.702775,0.00019994,2]
[388663488,1759311042214,-2956.9570567,0.00019994,2]
[388663490,1759311042223,-2300.8691737,0.00019994,2]
[388663492,1759311042233,-4076.9205902,0.00019994,2]
[388663494,1759311042244,-151.0,0.00019994,2]
[388663496,1759311042254,-151.0,0.00019994,2]
[388663498,1759311042266,-151.0,0.00019994,2]
[388663500,1759311042276,-151.0,0.00019994,2]
[388663502,1759311042294,-151.0,0.00019994,2]
[388663504,1759311042304,-151.0,0.00019994,2]
[388663506,1759311042313,-221.109804,0.00019994,2]
[388663508,1759311042322,-151.0,0.00019994,2]
[388663510,1759311042332,-181.132472,0.00019994,2]
[388663512,1759311042341,-181.132472,0.00019994,2]
[388663514,1759311042351,-181.132472,0.00019994,2]
[388663516,1759311042361,-181.132472,0.00019994,2]
[388663518,1759311042371,-151.0,0.00019994,2]
[388663520,1759311042380,-178.998059,0.00019994,2]
[388663522,1759311042390,-151.0,0.00019994,2]
[388663524,1759311042400,-151.0,0.00019994,2]
[388663526,1759311042411,-151.0,0.00019994,2]
[388663528,1759311042420,-151.0,0.00019994,2]
[388663530,1759311042434,-162.919924,0.00019994,2]
[388663532,1759311042443,-151.0,0.00019994,2]
[388663534,1759311042452,-663.357299,0.00019994,2]
[388663536,1759311042461,-663.357299,0.00019994,2]
[388663538,1759311042470,-1644.215035,0.00019994,2]
[388663540,1759311042479,-1644.215035,0.00019994,2]
[388663542,1759311042489,-1644.215035,0.00019994,2]
[388663544,1759311042498,-1644.215035,0.00019994,2]
[388663546,1759311042507,-909.50128,0.00019994,2]
[388663548,1759311042517,-151.0,0.00019994,2]
[388663550,1759311042527,-909.50128,0.00019994,2]
[388663553,1759311042539,-151.0,0.00019994,2]
[388663555,1759311042549,-909.50128,0.00019994,2]
[388663557,1759311042558,-909.50128,0.00019994,2]
[388663559,1759311042568,-188.75,0.00019994,2]
[388663561,1759311042578,-188.75,0.00019994,2]
[388663563,1759311042587,-188.75,0.00019994,2]
[388663565,1759311042596,-188.75,0.00019994,2]
[388663567,1759311042606,-284.199118,0.00019994,2]
[388663569,1759311042616,-324.507231,0.00019994,2]
[388663570,1759311042626,-324.507231,0.00019994,2]
[388663573,1759311042636,-324.507231,0.00019994,2]
[388663575,1759311042645,-324.507231,0.00019994,2]
[388663577,1759311042655,-151.0,0.00019994,2]
[388663579,1759311042664,-151.0,0.00019994,2]
[388663581,1759311042673,-151.0,0.00019994,2]
[388663583,1759311042682,-151.0,0.00019994,2]
[388663585,1759311042692,-151.0,0.00019994,2]
[388663587,1759311042703,-151.0,0.00019994,2]
[388663589,1759311042712,-151.0,0.00019994,2]
[388663591,1759311042721,-151.0,0.00019994,2]
[388663593,1759311042730,-151.0,0.00019994,2]
[388663595,1759311042740,-151.0,0.00019994,2]
[388663597,1759311042749,-151.0,0.00019994,2]
[388663599,1759311042759,-151.0,0.00019994,2]
[388663601,1759311042768,-151.0,0.00019994,2]
[388663603,1759311042777,-151.0,0.00019994,2]
[388663605,1759311042786,-151.0,0.00019994,2]
[388663607,1759311042796,-151.0,0.00019994,2]
[388663609,1759311042805,-151.0,0.00019994,2]
[388663611,1759311042814,-162.879849,0.00019994,2]
[388663613,1759311042824,-151.0,0.00019994,2]
[388663616,1759311042833,-151.0,0.00019994,2]
[388663618,1759311042843,-162.879849,0.00019994,2]
[388663620,1759311042852,-359.76179104,0.00019997,2]
[388663622,1759311042861,-267.46074303,0.00019997,2]
[388663624,1759311042870,-320.95576768,0.00019999,2]
[388663626,1759311042879,-300.0,0.00019999,2]
[388663629,1759311042888,-666.0,0.00019999,2]
[388663631,1759311042897,-200.0,0.00019999,2]
[388663633,1759311042907,-151.0,0.00019999,2]
[388663635,1759311042916,-151.0,0.00019999,2]
[388663637,1759311042925,-151.0,0.00019999,2]
[388663639,1759311042934,-151.0,0.00019999,2]
[388663642,1759311042948,-151.0,0.00019999,2]
[388663644,1759311042958,-151.0,0.00019999,2]
[388663647,1759311042967,-151.0,0.00019999,2]
[388663650,1759311042977,-151.0,0.00019999,2]
[388663652,1759311042986,-151.0,0.00019999,2]
[388663654,1759311042995,-813.33,0.00019999,2]
[388663656,1759311043005,-151.0,0.00019999,2]
[388663658,1759311043015,-151.0,0.00019999,2]
[388663660,1759311043024,-151.0,0.00019999,2]
[388663662,1759311043034,-214.811657,0.00019999,2]
[388663664,1759311043045,-151.0,0.00019999,2]
[388663666,1759311043055,-151.0,0.00019999,2]
[388663668,1759311043064,-151.0,0.00019999,2]
[388663670,1759311043074,-181.132472,0.00019999,2]
[388663673,1759311043084,-181.132472,0.00019999,2]
[388663675,1759311043094,-181.132472,0.00019999,2]
[388663677,1759311043104,-181.132472,0.00019999,2]
[388663679,1759311043114,-151.0,0.00019999,2]
[388663681,1759311043124,-151.0,0.00019999,2]
[388663683,1759311043133,-151.0,0.00019999,2]
[388663685,1759311043143,-151.0,0.00019999,2]
[388663687,1759311043154,-150.0,0.00019999,2]
[388663689,1759311043164,-152.11,0.00019999,2]
[388663691,1759311043173,-163.0,0.0002,3]
[388663693,1759311043186,-178.55285946,0.0002,2]
[388663695,1759311043196,-802982.95346881,0.0002,2]
[388663776,1759311044105,-548.47638316,0.0002,2]
[388663779,1759311044117,-2124.08502473,0.0002,2]
[388663871,1759311044998,-162.879849,0.000194,2]
[388663873,1759311045007,-162.879849,0.00019948,2]
[388663875,1759311045016,-162.879849,0.00019994,2]
[388663877,1759311045026,-9445.06838447,0.0002,2]
[388663879,1759311045035,-16924.46930972,0.0002,2]
[388663882,1759311045048,-2981.54559691,0.0002,2]
[388663885,1759311045067,-131636.83089453,0.0002,2]
[388663887,1759311045079,-3777.64723526,0.0002,2]
[388663889,1759311045089,-8701.4487419,0.0002,2]
[388663892,1759311045102,-6703.45893054,0.0002,2]
[388663894,1759311045111,-151.0,0.0002,2]
[388663896,1759311045119,-151.0,0.0002,2]
[388663898,1759311045129,-291.162286,0.0002,2]
[388663900,1759311045138,-151.0,0.0002,2]
[388663902,1759311045148,-151.0,0.0002,2]
[388663904,1759311045158,-298.519524,0.0002,2]
[388663906,1759311045167,-151.0,0.0002,2]
[388663908,1759311045176,-151.0,0.0002,2]
[388663910,1759311045185,-151.0,0.0002,2]
[388663912,1759311045194,-151.0,0.0002,2]
[388663914,1759311045204,-151.0,0.0002,2]
[388663916,1759311045213,-161.102983,0.0002,2]
[388663918,1759311045222,-133.97507119,0.0002,2]
[388663920,1759311045234,-17.02492881,0.0002,2]
[388663922,1759311045243,-151.0,0.0002,2]
[388663924,1759311045252,-151.0,0.0002,2]
[388663926,1759311045261,-151.0,0.0002,2]
[388663928,1759311045270,-151.0,0.0002,2]
[388663930,1759311045282,-151.0,0.0002,2]
[388663932,1759311045296,-175.449245,0.0002,2]
[388663934,1759311045305,-151.0,0.0002,2]
[388663936,1759311045314,-151.0,0.0002,2]
[388663938,1759311045324,-151.0,0.0002,2]
[388663940,1759311045333,-151.0,0.0002,2]
[388663942,1759311045342,-153.076822,0.0002,2]
[388663944,1759311045353,-151.0,0.0002,2]
[388663946,1759311045364,-207.835449,0.0002,2]
[388663948,1759311045373,-151.0,0.0002,2]
[388663950,1759311045382,-151.0,0.0002,2]
[388663952,1759311045392,-151.0,0.0002,2]
[388663954,1759311045401,-151.0,0.0002,2]
[388663956,1759311045410,-151.0,0.0002,2]
[388663958,1759311045420,-151.0,0.0002,2]
[388663960,1759311045429,-151.0,0.0002,2]
[388663962,1759311045438,-151.0,0.0002,2]
[388663964,1759311045448,-151.0,0.0002,2]
[388663966,1759311045457,-151.0,0.0002,2]
[388663969,1759311045470,-151.0,0.0002,2]
[388663971,1759311045479,-175.02568,0.0002,2]
[388663973,1759311045490,-151.0,0.0002,2]
[388663975,1759311045499,-151.0,0.0002,2]
[388663977,1759311045508,-151.0,0.0002,2]
[388663979,1759311045518,-258.811493,0.0002,2]
[388663981,1759311045527,-151.0,0.0002,2]
[388663983,1759311045536,-151.0,0.0002,2]
[388663985,1759311045548,-151.0,0.0002,2]
[388663987,1759311045557,-210.755775,0.0002,2]
[388663989,1759311045567,-186.15417266,0.0002,2]
[388663991,1759311045576,-151.0,0.0002,2]
[388663993,1759311045586,-151.0,0.0002,2]
[388663995,1759311045595,-151.0,0.0002,2]
[388663997,1759311045604,-151.0,0.0002,2]
[388663999,1759311045614,-151.0,0.0002,2]
[388664001,1759311045623,-151.0,0.0002,2]
[388664003,1759311045632,-151.0,0.0002,2]
[388664005,1759311045642,-151.0,0.0002,2]
[388664007,1759311045651,-151.0,0.0002,2]
[388664009,1759311045660,-151.0,0.0002,2]
[388664011,1759311045669,-151.0,0.0002,2]
[388664013,1759311045679,-151.0,0.0002,2]
[388664015,1759311045688,-151.0,0.0002,2]
[388664017,1759311045697,-151.0,0.0002,2]
[388664019,1759311045707,-237.124026,0.0002,2]
[388664021,1759311045718,-295.52334,0.0002,2]
[388664024,1759311045727,-151.0,0.0002,2]
[388664025,1759311045737,-151.0,0.0002,2]
[388664027,1759311045747,-151.0,0.0002,2]
[388664030,1759311045756,-151.0,0.0002,2]
[388664032,1759311045765,-151.0,0.0002,2]
[388664035,1759311045775,-81.00293315,0.0002,2]
[388664038,1759311045789,-69.99706685,0.0002,2]
[388664041,1759311045798,-151.0,0.0002,2]
[388664044,1759311045808,-151.0,0.0002,2]
[388664047,1759311045817,-151.0,0.0002,2]
[388664051,1759311045826,-151.0,0.0002,2]
[388664055,1759311045835,-151.0,0.0002,2]
[388664059,1759311045844,-151.0,0.0002,2]
[388664063,1759311045854,-152.375236,0.0002,2]
[388664067,1759311045862,-151.0,0.0002,2]
[388664070,1759311045873,-151.0,0.0002,2]
[388664073,1759311045882,-151.0,0.0002,2]
[388664077,1759311045892,-151.0,0.0002,2]
[388664081,1759311045901,-151.0,0.0002,2]
[388664084,1759311045910,-151.0,0.0002,2]
[388664087,1759311045919,-151.0,0.0002,2]
[388664090,1759311045928,-761.995576,0.0002,2]
[388664094,1759311045938,-151.0,0.0002,2]
[388664097,1759311045947,-761.995576,0.0002,2]
[388664100,1759311045956,-151.0,0.0002,2]
[388664103,1759311045965,-761.995576,0.0002,2]
[388664106,1759311045975,-761.995576,0.0002,2]
[388664109,1759311045984,-151.0,0.0002,2]
[388664112,1759311045993,-151.0,0.0002,2]
[388664115,1759311046002,-761.995576,0.0002,2]
[388664118,1759311046012,-151.0,0.0002,2]
[388664121,1759311046021,-761.995576,0.0002,2]
[388664124,1759311046030,-151.0,0.0002,2]
[388664127,1759311046040,-761.995576,0.0002,2]
[388664130,1759311046049,-652.20732667,0.0002,2]
[388664133,1759311046062,-109.78824933,0.0002,2]
[388664136,1759311046071,-151.0,0.0002,2]
[388664139,1759311046080,-151.0,0.0002,2]
[388664141,1759311046089,-151.0,0.0002,2]
[388664143,1759311046098,-151.0,0.0002,2]
[388664145,1759311046107,-761.995576,0.0002,2]
[388664147,1759311046116,-236.754829,0.0002,2]
[388664150,1759311046125,-151.0,0.0002,2]
[388664153,1759311046134,-761.995576,0.0002,2]
[388664156,1759311046143,-151.0,0.0002,2]
[388664159,1759311046152,-761.995576,0.0002,2]
[388664162,1759311046161,-761.995576,0.0002,2]
[388664164,1759311046170,-761.995576,0.0002,2]
[388664166,1759311046180,-761.995576,0.0002,2]
[388664168,1759311046190,-761.995576,0.0002,2]
[388664170,1759311046199,-761.995576,0.0002,2]
[388664172,1759311046208,-151.0,0.0002,2]
[388664174,1759311046217,-151.0,0.0002,2]
[388664175,1759311046226,-151.0,0.0002,2]
[388664176,1759311046236,-261.109,0.0002,2]
[388664179,1759311046246,-151.0,0.0002,2]
[388664180,1759311046255,-151.0,0.0002,2]
[388664181,1759311046263,-156.573473,0.0002,2]
[388664182,1759311046272,-151.0,0.0002,2]
[388664183,1759311046282,-181.731641,0.0002,2]
[388664184,1759311046297,-89.91843456,0.0002,2]
[388664185,1759311046322,-61.08156544,0.0002,2]
[388664186,1759311046331,-151.0,0.0002,2]
[388664187,1759311046342,-151.0,0.0002,2]
[388664188,1759311046351,-151.0,0.0002,2]
[388664189,1759311046360,-151.0,0.0002,2]
[388664190,1759311046372,-151.0,0.0002,2]
[388664191,1759311046381,-225.30092,0.0002,2]
[388664192,1759311046392,-151.0,0.0002,2]
[388664193,1759311046401,-151.0,0.0002,2]
[388664194,1759311046410,-151.0,0.0002,2]
[388664195,1759311046420,-151.0,0.0002,2]
[388664196,1759311046429,-151.0,0.0002,2]
[388664197,1759311046439,-151.0,0.0002,2]
[388664198,1759311046449,-151.0,0.0002,2]
[388664200,1759311046458,-151.0,0.0002,2]
[388664202,1759311046467,-151.0,0.0002,2]
[388664204,1759311046476,-151.0,0.0002,2]
[388664206,1759311046486,-147.94029722,0.0002,2]
[388664208,1759311046499,-3.05970278,0.0002,2]
[388664210,1759311046509,-180.130672,0.0002,2]
[388664212,1759311046519,-151.0,0.0002,2]
[388664213,1759311046527,-151.0,0.0002,2]
[388664214,1759311046538,-151.0,0.0002,2]
[388664215,1759311046548,-151.0,0.0002,2]
[388664217,1759311046557,-151.0,0.0002,2]
[388664220,1759311046567,-151.0,0.0002,2]
[388664221,1759311046576,-151.0,0.0002,2]
[388664222,1759311046586,-151.0,0.0002,2]
[388664223,1759311046595,-151.0,0.0002,2]
[388664224,1759311046604,-151.0,0.0002,2]
[388664225,1759311046614,-151.0,0.0002,2]
[388664226,1759311046623,-151.0,0.0002,2]
[388664227,1759311046632,-151.0,0.0002,2]
[388664229,1759311046642,-151.0,0.0002,2]
[388664231,1759311046650,-151.0,0.0002,2]
[388664233,1759311046659,-176.511174,0.0002,2]
[388664235,1759311046668,-151.0,0.0002,2]
[388664236,1759311046677,-151.0,0.0002,2]
[388664237,1759311046688,-151.0,0.0002,2]
[388664238,1759311046698,-232.967233,0.0002,2]
[388664239,1759311046707,-151.0,0.0002,2]
[388664240,1759311046716,-151.0,0.0002,2]
[388664241,1759311046726,-151.0,0.0002,2]
[388664242,1759311046735,-151.0,0.0002,2]
[388664243,1759311046744,-151.0,0.0002,2]
[388664244,1759311046753,-270.48934316,0.0002,2]
[388664245,1759311046763,-151.0,0.0002,2]
[388664246,1759311046772,-151.0,0.0002,2]
[388664247,1759311046782,-151.0,0.0002,2]
[388664248,1759311046794,-151.0,0.0002,2]
[388664249,1759311046804,-157.913091,0.0002,2]
[388664250,1759311046813,-151.0,0.0002,2]
[388664251,1759311046823,-151.0,0.0002,2]
[388664252,1759311046832,-221.036928,0.0002,2]
[388664253,1759311046842,-151.0,0.0002,2]
[388664254,1759311046853,-151.0,0.0002,2]
[388664255,1759311046862,-151.0,0.0002,2]
[388664256,1759311046871,-151.0,0.0002,2]
[388664257,1759311046881,-151.0,0.0002,2]
[388664258,1759311046890,-151.0,0.0002,2]
[388664259,1759311046900,-151.0,0.0002,2]
[388664260,1759311046909,-151.0,0.0002,2]
[388664261,1759311046919,-151.0,0.0002,2]
[388664262,1759311046928,-151.0,0.0002,2]
[388664263,1759311046938,-151.0,0.0002,2]
[388664264,1759311046947,-151.0,0.0002,2]
[388664265,1759311046956,-151.0,0.0002,2]
[388664266,1759311046967,-151.0,0.0002,2]
[388664267,1759311046976,-151.0,0.0002,2]
[388664268,1759311046986,-151.0,0.0002,2]
[388664269,1759311046995,-151.0,0.0002,2]
[388664270,1759311047005,-151.0,0.0002,2]
[388664271,1759311047015,-151.0,0.0002,2]
[388664272,1759311047024,-160.40939,0.0002,2]
[388664273,1759311047033,-8744.54960781,0.0002,2]